[Event "ESP-ch Rapid 2018"]
[Site "Linares"]
[Date "2018.08.19"]
[Round "9"]
[White "Roldan Marques, Daniel"]
[Black "Cuevas Fernandez, Jose Alberto"]
[Result "1/2-1/2"]
[ECO "E10"]
[WhiteElo "2161"]
[BlackElo "2147"]
[Annotator "NA"]
[PlyCount "64"]
[EventDate "2018.08.19"]
[EventType "team-tourn"]
[EventCountry "ESP"]
[SourceTitle "playchess.com"]
[Source "ChessBase"]
[SourceQuality "1"]
[TimeControl "900+5"]

1. d4 {[%emt 0:00:00]} Nf6 {[%emt 0:00:00]} 2. c4 {[%emt 0:00:00]} e6 {[%emt 0:00:00]} 3. Nf3 {[%emt 0:00:02]} c5 {[%emt 0:00:00]} 4. d5 {[%emt 0:00:01]} b5 {[%emt 0:00:00]} 5. Bg5 {[%emt 0:00:50]} bxc4 {[%emt 0:00:03]} 6. e4 {[%emt 0:00:19]} Qb6 {[%emt 0:00:18]} 7. Qc2 {[%emt 0:00:35]} Bb7 {[%emt 0:00:28]} 8. Bxf6 {[%emt 0:00:35]} gxf6 {[%emt 0:00:02]} 9. Bxc4 {[%emt 0:00:15]} Na6 {[%emt 0:00:12]} 10. O-O {[%emt 0:00:11]} Nb4 {[%emt 0:00:04]} 11. Qe2 {[%emt 0:00:18]} Bg7 {[%emt 0:00:18]} 12. a3 {[%emt 0:00:25]} Na6 {[%emt 0:00:02]} 13. Nc3 {[%emt 0:00:05]} O-O {[%emt 0:00:35]} 14. Na4 {[%emt 0:01:32]} Qa5 {[%emt 0:00:10]} 15. Bb5 {[%emt 0:02:24]} Nc7 {[%emt 0:00:01]} 16. Bxd7 {[%emt 0:00:10]} Ba6 {[%emt 0:00:09]} 17. Qc2 {[%emt 0:00:13]} Bxf1 {[%emt 0:00:08]} 18. Rxf1 {[%emt 0:00:03]} exd5 {[%emt 0:00:03]} 19. Bc6 {[%emt 0:00:09]} Rad8 {[%emt 0:00:11]} 20. Nxc5 {[%emt 0:00:04]} Qb6 {[%emt 0:01:00]} 21. Nd7 {[%emt 0:00:03]} Rxd7 {[%emt 0:00:06]} 22. Bxd7 {[%emt 0:00:02]} dxe4 {[%emt 0:00:03]} 23. Qxe4 {[%emt 0:00:15]} Qxb2 {[%emt 0:00:07]} 24. Nd4 {[%emt 0:01:15]} Rd8 {[%emt 0:00:16]} 25. Qe7 {[%emt 0:00:02]} Rf8 {[%emt 0:00:28]} 26. Nf5 {[%emt 0:00:53]} Qe5 {[%emt 0:00:01]} 27. Rc1 {[%emt 0:00:01]} Nd5 {[%emt 0:00:09]} 28. Qc5 {[%emt 0:00:51]} Nf4 {[%emt 0:00:36]} 29. Qxe5 {[%emt 0:00:43]} fxe5 {[%emt 0:00:01]} 30. Ne7+ {[%emt 0:00:50]} Kh8 {[%emt 0:00:04]} 31. Rc8 {[%emt 0:00:04]} Rxc8 {[%emt 0:00:07]} 32. Nxc8 {[%emt 0:00:02]} Bf8 {[%emt 0:00:03]} 1/2-1/2

[Event "ESP-ch Rapid 2018"]
[Site "Linares"]
[Date "2018.08.19"]
[Round "9"]
[White "Riquelme Valero, Manuel Damian"]
[Black "Arjol Lopez, Daniel"]
[Result "0-1"]
[ECO "E20"]
[WhiteElo "2150"]
[BlackElo "2137"]
[Annotator "NA"]
[PlyCount "72"]
[EventDate "2018.08.19"]
[EventType "team-tourn"]
[EventCountry "ESP"]
[SourceTitle "playchess.com"]
[Source "ChessBase"]
[SourceQuality "1"]
[TimeControl "900+5"]

1. d4 {[%emt 0:00:00]} Nf6 {[%emt 0:00:00]} 2. c4 {[%emt 0:00:00]} e6 {[%emt 0:00:00]} 3. Nc3 {[%emt 0:00:00]} Bb4 {[%emt 0:00:00]} 4. f3 {[%emt 0:00:01]} d5 {[%emt 0:00:10]} 5. a3 {[%emt 0:00:01]} Bxc3+ {[%emt 0:00:02]} 6. bxc3 {[%emt 0:00:01]} O-O {[%emt 0:00:03]} 7. cxd5 {[%emt 0:00:02]} exd5 {[%emt 0:00:06]} 8. e3 {[%emt 0:00:01]} Bf5 {[%emt 0:00:14]} 9. Ne2 {[%emt 0:00:01]} c6 {[%emt 0:00:05]} 10. Ng3 {[%emt 0:00:09]} Bg6 {[%emt 0:00:01]} 11. h4 {[%emt 0:00:02]} h5 {[%emt 0:00:02]} 12. Bd3 {[%emt 0:00:04]} Qd6 {[%emt 0:00:04]} 13. Kf2 {[%emt 0:00:03]} Bxd3 {[%emt 0:00:56]} 14. Qxd3 {[%emt 0:00:02]} Re8 {[%emt 0:00:01]} 15. Qf5 {[%emt 0:00:44]} g6 {[%emt 0:00:06]} 16. Qd3 {[%emt 0:00:42]} Nbd7 {[%emt 0:00:07]} 17. Rh3 {[%emt 0:00:03]} c5 {[%emt 0:00:13]} 18. Ne2 {[%emt 0:00:05]} c4 {[%emt 0:01:02]} 19. Qc2 {[%emt 0:00:19]} Nf8 {[%emt 0:00:05]} 20. Nf4 {[%emt 0:00:06]} Ne6 {[%emt 0:00:10]} 21. Nxg6 {[%emt 0:01:39]} fxg6 {[%emt 0:00:02]} 22. Qxg6+ {[%emt 0:00:02]} Ng7 {[%emt 0:00:02]} 23. Rg3 {[%emt 0:00:05]} Re7 {[%emt 0:00:18]} 24. e4 {[%emt 0:00:12]} dxe4 {[%emt 0:00:15]} 25. Bh6 {[%emt 0:00:02]} Nfe8 {[%emt 0:01:33]} 26. Bxg7 {[%emt 0:03:51]} Rxg7 {[%emt 0:00:18]} 27. Qxd6 {[%emt 0:00:07]} Nxd6 {[%emt 0:00:01]} 28. Rg5 {[%emt 0:00:11]} Rxg5 {[%emt 0:00:11]} 29. hxg5 {[%emt 0:00:02]} Kg7 {[%emt 0:00:00]} 30. Rb1 {[%emt 0:01:19]} b5 {[%emt 0:00:01]} 31. fxe4 {[%emt 0:00:03]} Nxe4+ {[%emt 0:00:03]} 32. Ke3 {[%emt 0:00:00]} Re8 {[%emt 0:00:02]} 33. Kf4 {[%emt 0:00:08]} Nxc3 {[%emt 0:00:05]} 34. Rh1 {[%emt 0:00:15]} Kg6 {[%emt 0:00:04]} 35. g4 {[%emt 0:00:01]} Re4+ {[%emt 0:00:01]} 36. Kf3 {[%emt 0:00:01]} Rxg4 {[%emt 0:00:05]} 0-1

[Event "ESP-ch Rapid 2018"]
[Site "Linares"]
[Date "2018.08.19"]
[Round "9"]
[White "Gomez Sanjuan, Hector Fernando"]
[Black "Cabrera Ruiz, Luis"]
[Result "1-0"]
[ECO "E12"]
[WhiteElo "2146"]
[BlackElo "2122"]
[Annotator "NA"]
[PlyCount "65"]
[EventDate "2018.08.19"]
[EventType "team-tourn"]
[EventCountry "ESP"]
[SourceTitle "playchess.com"]
[Source "ChessBase"]
[SourceQuality "1"]
[TimeControl "900+5"]

1. d4 {[%emt 0:00:00]} Nf6 {[%emt 0:00:00]} 2. c4 {[%emt 0:00:00]} e6 {[%emt 0:00:00]} 3. Nf3 {[%emt 0:00:12]} b6 {[%emt 0:00:07]} 4. a3 {[%emt 0:00:02]} Bb7 {[%emt 0:00:02]} 5. Nc3 {[%emt 0:00:01]} Be7 {[%emt 0:00:08]} 6. d5 {[%emt 0:00:02]} O-O {[%emt 0:00:54]} 7. e4 {[%emt 0:00:07]} d6 {[%emt 0:00:04]} 8. Be2 {[%emt 0:00:13]} e5 {[%emt 0:00:12]} 9. b4 {[%emt 0:00:07]} c6 {[%emt 0:00:07]} 10. O-O {[%emt 0:00:15]} cxd5 {[%emt 0:00:09]} 11. cxd5 {[%emt 0:01:24]} Nbd7 {[%emt 0:00:08]} 12. Nd2 {[%emt 0:00:27]} Rc8 {[%emt 0:01:14]} 13. Nb5 {[%emt 0:01:32]} a6 {[%emt 0:00:35]} 14. Na7 {[%emt 0:00:02]} Rc7 {[%emt 0:00:39]} 15. Nc6 {[%emt 0:00:02]} Bxc6 {[%emt 0:00:13]} 16. dxc6 {[%emt 0:00:02]} Nb8 {[%emt 0:00:14]} 17. b5 {[%emt 0:00:17]} axb5 {[%emt 0:00:02]} 18. Bxb5 {[%emt 0:00:01]} Nxc6 {[%emt 0:00:03]} 19. Bb2 {[%emt 0:00:19]} Nb8 {[%emt 0:00:29]} 20. f3 {[%emt 0:00:52]} Nbd7 {[%emt 0:00:10]} 21. Nc4 {[%emt 0:00:13]} Nc5 {[%emt 0:01:32]} 22. a4 {[%emt 0:00:03]} Rc8 {[%emt 0:00:17]} 23. Rf2 {[%emt 0:00:40]} Qc7 {[%emt 0:00:07]} 24. Rd2 {[%emt 0:00:23]} Nxa4 {[%emt 0:01:04]} 25. Qxa4 {[%emt 0:00:57]} Nh5 {[%emt 0:02:36]} 26. Rad1 {[%emt 0:01:09]} Bg5 {[%emt 0:00:30]} 27. Rxd6 {[%emt 0:00:36]} Qc5+ {[%emt 0:00:02]} 28. Kh1 {[%emt 0:00:48]} Qf2 {[%emt 0:00:05]} 29. Bxe5 {[%emt 0:00:32]} f6 {[%emt 0:01:15]} 30. Bd7 {[%emt 0:00:34]} fxe5 {[%emt 0:03:32]} 31. Bxc8 {[%emt 0:00:20]} Ng3+ {[%emt 0:00:48]} 32. hxg3 {[%emt 0:00:13]} Qxg3 {[%emt 0:00:07]} 33. Qd7 {[%emt 0:01:11]} 1-0

[Event "ESP-ch Rapid 2018"]
[Site "Linares"]
[Date "2018.08.19"]
[Round "9"]
[White "Guadamuro Torrente, Anabel"]
[Black "Estremera Panos, Sergio"]
[Result "0-1"]
[ECO "B20"]
[WhiteElo "2145"]
[BlackElo "2337"]
[Annotator "NA"]
[PlyCount "86"]
[EventDate "2018.08.19"]
[EventType "team-tourn"]
[EventCountry "ESP"]
[SourceTitle "playchess.com"]
[Source "ChessBase"]
[SourceQuality "1"]
[TimeControl "900+5"]

1. e4 {[%emt 0:00:00]} c5 {[%emt 0:00:00]} 2. d3 {[%emt 0:00:00]} Nc6 {[%emt 0:00:02]} 3. g3 {[%emt 0:00:04]} g6 {[%emt 0:00:04]} 4. f4 {[%emt 0:00:06]} Bg7 {[%emt 0:00:03]} 5. Bg2 {[%emt 0:00:03]} d6 {[%emt 0:00:07]} 6. Nf3 {[%emt 0:00:04]} Nf6 {[%emt 0:00:04]} 7. O-O {[%emt 0:00:05]} O-O {[%emt 0:00:04]} 8. Nc3 {[%emt 0:00:03]} Bg4 {[%emt 0:00:08]} 9. h3 {[%emt 0:00:17]} Bxf3 {[%emt 0:00:02]} 10. Bxf3 {[%emt 0:00:07]} Nd7 {[%emt 0:00:13]} 11. Bg2 {[%emt 0:00:20]} Rb8 {[%emt 0:00:23]} 12. Ne2 {[%emt 0:00:15]} Qc7 {[%emt 0:00:18]} 13. c3 {[%emt 0:01:26]} b5 {[%emt 0:01:10]} 14. Be3 {[%emt 0:01:48]} b4 {[%emt 0:01:25]} 15. d4 {[%emt 0:00:33]} bxc3 {[%emt 0:00:06]} 16. bxc3 {[%emt 0:00:02]} Na5 {[%emt 0:02:47]} 17. e5 {[%emt 0:01:04]} Nc4 {[%emt 0:02:44]} 18. Bf2 Rb2 19. Qd3 {[%emt 0:03:26]} Ndb6 {[%emt 0:00:24]} 20. g4 {[%emt 0:00:53]} e6 {[%emt 0:02:16]} 21. Ng3 {[%emt 0:00:35]} Rd8 {[%emt 0:00:36]} 22. exd6 {[%emt 0:01:48]} Qxd6 {[%emt 0:00:48]} 23. Ne4 {[%emt 0:00:10]} Qc7 {[%emt 0:00:12]} 24. a4 {[%emt 0:01:12]} cxd4 {[%emt 0:01:02]} 25. cxd4 {[%emt 0:00:21]} Rxf2 {[%emt 0:00:30]} 26. Nxf2 {[%emt 0:00:29]} Bxd4 {[%emt 0:00:04]} 27. Qg3 {[%emt 0:00:38]} Bxa1 {[%emt 0:00:11]} 28. Rxa1 {[%emt 0:00:01]} Nd5 {[%emt 0:00:26]} 29. Bxd5 {[%emt 0:00:38]} exd5 {[%emt 0:00:11]} 30. g5 {[%emt 0:00:13]} Qc5 {[%emt 0:00:02]} 31. Re1 {[%emt 0:00:14]} Rc8 {[%emt 0:00:27]} 32. Kg2 {[%emt 0:00:09]} d4 {[%emt 0:00:07]} 33. Ne4 {[%emt 0:00:02]} Qc6 {[%emt 0:00:06]} 34. Qf3 {[%emt 0:00:29]} Ne3+ {[%emt 0:00:09]} 35. Kg3 {[%emt 0:00:05]} Nf5+ {[%emt 0:00:11]} 36. Kg4 {[%emt 0:00:01]} h5+ {[%emt 0:00:05]} 37. gxh6 {[%emt 0:00:02]} Nxh6+ {[%emt 0:00:01]} 38. Kg3 {[%emt 0:00:05]} Nf5+ {[%emt 0:00:01]} 39. Kg4 {[%emt 0:00:02]} Qe6 {[%emt 0:00:05]} 40. Kg5 {[%emt 0:00:09]} Kg7 {[%emt 0:00:05]} 41. Qd3 {[%emt 0:00:19]} Qe7+ {[%emt 0:00:02]} 42. Kg4 {[%emt 0:00:01]} Qh4+ {[%emt 0:00:02]} 43. Kf3 {[%emt 0:00:03]} Qxh3+ {[%emt 0:00:02] Kg4 [%clk 0:00:10] Qxg4 [%clk 0:00:48]} 0-1

[Event "ESP-ch Rapid 2018"]
[Site "Linares"]
[Date "2018.08.19"]
[Round "9"]
[White "Perdomo Araujo, Angel Eduardo"]
[Black "Iglesias Leon, Francisco J"]
[Result "0-1"]
[ECO "B07"]
[WhiteElo "2100"]
[BlackElo "2129"]
[Annotator "NA"]
[PlyCount "89"]
[EventDate "2018.08.19"]
[EventType "team-tourn"]
[EventCountry "ESP"]
[SourceTitle "playchess.com"]
[Source "ChessBase"]
[SourceQuality "1"]
[TimeControl "900+5"]

1. e4 {[%emt 0:00:00]} d6 {[%emt 0:00:00]} 2. d4 {[%emt 0:00:00]} Nf6 {[%emt 0:00:00]} 3. Nc3 {[%emt 0:00:00]} e5 {[%emt 0:00:00]} 4. dxe5 {[%emt 0:00:00]} dxe5 {[%emt 0:00:00]} 5. Qxd8+ {[%emt 0:00:03]} Kxd8 {[%emt 0:00:00]} 6. Bg5 {[%emt 0:00:01]} Be6 {[%emt 0:00:00]} 7. O-O-O+ {[%emt 0:00:02]} Kc8 {[%emt 0:00:08]} 8. Nf3 {[%emt 0:00:12]} Bd6 {[%emt 0:00:09]} 9. Bxf6 {[%emt 0:00:08]} gxf6 {[%emt 0:00:02]} 10. Nb5 {[%emt 0:00:01]} Rd8 {[%emt 0:00:02]} 11. Nxd6+ {[%emt 0:00:01]} cxd6 {[%emt 0:00:01]} 12. c4 {[%emt 0:00:15]} Kc7 {[%emt 0:00:10]} 13. Bd3 {[%emt 0:00:01]} Nd7 {[%emt 0:00:01]} 14. b4 {[%emt 0:00:02]} a5 {[%emt 0:00:03]} 15. b5 {[%emt 0:00:06]} Nc5 {[%emt 0:00:02]} 16. Kc2 {[%emt 0:00:04]} Bg4 {[%emt 0:00:02]} 17. h3 {[%emt 0:00:11]} Bxf3 {[%emt 0:00:02]} 18. gxf3 Ne6 {[%emt 0:00:01]} 19. Kc3 {[%emt 0:00:11]} Nd4 {[%emt 0:00:18]} 20. f4 {[%emt 0:00:03]} Ne6 {[%emt 0:00:17]} 21. fxe5 {[%emt 0:00:12]} fxe5 {[%emt 0:00:10]} 22. Rdg1 {[%emt 0:00:02]} Rg8 {[%emt 0:00:02]} 23. Rg3 {[%emt 0:00:01]} Rg6 {[%emt 0:00:06]} 24. Rhg1 {[%emt 0:00:18]} Rag8 {[%emt 0:00:01]} 25. Kd2 {[%emt 0:00:03]} Kb6 {[%emt 0:00:09]} 26. Kc3 {[%emt 0:00:15]} Nf4 {[%emt 0:00:08]} 27. h4 {[%emt 0:00:18]} Kc5 {[%emt 0:00:14]} 28. Bf1 {[%emt 0:00:12]} h6 {[%emt 0:00:26]} 29. a3 {[%emt 0:00:09]} Nh5 {[%emt 0:00:05]} 30. Rxg6 {[%emt 0:00:11]} Rxg6 {[%emt 0:00:13]} 31. Rxg6 {[%emt 0:00:07]} fxg6 {[%emt 0:00:01]} 32. Bh3 {[%emt 0:00:02]} Nf4 {[%emt 0:00:04]} 33. Bc8 {[%emt 0:00:37]} Kb6 {[%emt 0:00:02]} 34. Bd7 {[%emt 0:00:10]} Kc7 {[%emt 0:00:03]} 35. Be8 {[%emt 0:00:05]} Kd8 {[%emt 0:00:07]} 36. Bf7 {[%emt 0:00:02]} Ke7 {[%emt 0:00:02]} 37. Bd5 {[%emt 0:00:11]} b6 {[%emt 0:00:04]} 38. Kd2 {[%emt 0:00:03]} Kf6 {[%emt 0:00:06]} 39. f3 {[%emt 0:00:31]} Ng2 {[%emt 0:00:05]} 40. h5 {[%emt 0:00:03]} g5 {[%emt 0:00:04]} 41. Bc6 {[%emt 0:00:07]} Ke7 {[%emt 0:00:01]} 42. Bb7 {[%emt 0:00:13]} Nf4 {[%emt 0:00:02]} 43. Bc8 {[%emt 0:00:01]} Nxh5 {[%emt 0:00:03]} 44. Ke3 {[%emt 0:00:01]} Nf4 {[%emt 0:00:08]} 45. Bb7 {[%emt 0:00:06]} 0-1

[Event "ESP-ch Rapid 2018"]
[Site "Linares"]
[Date "2018.08.19"]
[Round "9"]
[White "Arroyo Rodriguez, Jesus"]
[Black "Tudela Corbalan, Carlos"]
[Result "0-1"]
[ECO "A04"]
[WhiteElo "2099"]
[BlackElo "2246"]
[Annotator "NA"]
[PlyCount "66"]
[EventDate "2018.08.19"]
[EventType "team-tourn"]
[EventCountry "ESP"]
[SourceTitle "playchess.com"]
[Source "ChessBase"]
[SourceQuality "1"]
[TimeControl "900+5"]

1. Nf3 {[%emt 0:00:00]} d6 {[%emt 0:00:00]} 2. g3 {[%emt 0:00:04]} g6 {[%emt 0:00:05]} 3. Bg2 {[%emt 0:00:01]} Bg7 {[%emt 0:00:01]} 4. O-O {[%emt 0:00:12]} e5 {[%emt 0:00:13]} 5. c4 {[%emt 0:00:32]} f5 {[%emt 0:00:11]} 6. d4 {[%emt 0:01:57]} e4 {[%emt 0:00:18]} 7. Ne1 {[%emt 0:00:16]} Nf6 {[%emt 0:00:05]} 8. b3 {[%emt 0:00:46]} O-O {[%emt 0:00:08]} 9. Bb2 {[%emt 0:00:12]} c6 {[%emt 0:00:13]} 10. d5 {[%emt 0:00:16]} cxd5 {[%emt 0:00:22]} 11. cxd5 {[%emt 0:00:25]} Na6 {[%emt 0:00:17]} 12. Nd2 {[%emt 0:00:49]} Bd7 {[%emt 0:00:11]} 13. Nc4 {[%emt 0:00:13]} Qe7 {[%emt 0:00:05]} 14. Nc2 {[%emt 0:00:42]} Nc7 {[%emt 0:00:12]} 15. N2e3 {[%emt 0:00:26]} g5 {[%emt 0:00:20]} 16. f4 {[%emt 0:02:04]} exf3 {[%emt 0:00:31]} 17. Rxf3 {[%emt 0:00:37]} Ne4 {[%emt 0:00:42]} 18. Bxg7 {[%emt 0:01:06]} Qxg7 {[%emt 0:00:03]} 19. Rc1 {[%emt 0:01:19]} Nb5 {[%emt 0:00:11]} 20. Qd3 {[%emt 0:01:34]} Nc5 {[%emt 0:01:30]} 21. Qb1 {[%emt 0:00:29]} Nd4 {[%emt 0:00:08]} 22. Rf2 {[%emt 0:01:02]} Rae8 {[%emt 0:03:29]} 23. Nxd6 {[%emt 0:00:32]} Rxe3 {[%emt 0:00:08]} 24. Rxc5 {[%emt 0:00:02]} Nxe2+ {[%emt 0:00:17]} 25. Kh1 {[%emt 0:00:19]} Qe7 {[%emt 0:02:00]} 26. Nxb7 {[%emt 0:00:02]} Nxg3+ {[%emt 0:01:20]} 27. hxg3 {[%emt 0:00:11]} Re1+ {[%emt 0:00:02]} 28. Rf1 {[%emt 0:00:23]} Rxb1 {[%emt 0:00:02]} 29. Rxb1 {[%emt 0:00:02]} f4 {[%emt 0:00:37]} 30. d6 {[%emt 0:00:18]} Qf6 {[%emt 0:00:01]} 31. gxf4 {[%emt 0:00:18]} gxf4 {[%emt 0:00:34]} 32. Rh5 {[%emt 0:00:17]} Qg6 {[%emt 0:00:31]} 33. Bd5+ {[%emt 0:00:13]} Kh8 {[%emt 0:00:10]} 0-1

[Event "ESP-ch Rapid 2018"]
[Site "Linares"]
[Date "2018.08.19"]
[Round "9"]
[White "Razola, Garcia Joaquin"]
[Black "Blazquez Gomez, Juan Carlos"]
[Result "0-1"]
[ECO "B01"]
[WhiteElo "2087"]
[BlackElo "2240"]
[Annotator "NA"]
[PlyCount "116"]
[EventDate "2018.08.19"]
[EventType "team-tourn"]
[EventCountry "ESP"]
[SourceTitle "playchess.com"]
[Source "ChessBase"]
[SourceQuality "1"]
[TimeControl "900+5"]

1. e4 {[%emt 0:00:00]} d5 {[%emt 0:00:00]} 2. e5 {[%emt 0:00:00]} Bf5 {[%emt 0:00:00]} 3. d4 {[%emt 0:00:08]} e6 {[%emt 0:00:01]} 4. c3 {[%emt 0:00:04]} c5 {[%emt 0:00:03]} 5. Bd3 {[%emt 0:00:06]} Bg6 {[%emt 0:00:02]} 6. Ne2 {[%emt 0:00:30]} Nc6 {[%emt 0:00:03]} 7. O-O {[%emt 0:00:04]} Nge7 {[%emt 0:01:15]} 8. Bg5 {[%emt 0:00:52]} Qb6 {[%emt 0:01:41]} 9. Bxe7 {[%emt 0:00:35]} Bxe7 {[%emt 0:00:03]} 10. b3 {[%emt 0:00:18]} O-O {[%emt 0:00:24]} 11. Kh1 {[%emt 0:00:30]} Rac8 {[%emt 0:00:38]} 12. f4 {[%emt 0:00:14]} cxd4 {[%emt 0:00:45]} 13. Bxg6 {[%emt 0:00:11]} hxg6 {[%emt 0:00:19]} 14. cxd4 {[%emt 0:00:26]} Nb4 {[%emt 0:00:19]} 15. Nbc3 {[%emt 0:00:06]} Rc7 {[%emt 0:00:38]} 16. Rf3 {[%emt 0:00:33]} Rfc8 {[%emt 0:00:02]} 17. Qd2 {[%emt 0:00:58]} Nc6 {[%emt 0:00:13]} 18. Na4 {[%emt 0:00:31]} Qb4 {[%emt 0:00:40]} 19. Qd3 {[%emt 0:01:49]} b5 {[%emt 0:00:38]} 20. a3 {[%emt 0:00:30]} Qa5 {[%emt 0:00:09]} 21. Nc5 {[%emt 0:00:13]} Bxc5 {[%emt 0:01:09]} 22. dxc5 {[%emt 0:00:02]} b4 {[%emt 0:00:03]} 23. Qd2 {[%emt 0:01:27]} Qxc5 {[%emt 0:00:18]} 24. Rc1 {[%emt 0:00:18]} Qb6 {[%emt 0:00:16]} 25. axb4 {[%emt 0:00:55]} Nxb4 {[%emt 0:00:03]} 26. Rfc3 {[%emt 0:00:15]} a5 {[%emt 0:00:54]} 27. h3 {[%emt 0:00:10]} Kh7 {[%emt 0:00:37]} 28. Qe1 {[%emt 0:00:38]} Rxc3 {[%emt 0:01:26]} 29. Rxc3 {[%emt 0:00:07]} Rxc3 {[%emt 0:00:11]} 30. Nxc3 {[%emt 0:00:36]} Kg8 {[%emt 0:00:11]} 31. Na4 {[%emt 0:00:58]} Qc7 {[%emt 0:00:07]} 32. Qh4 {[%emt 0:00:30]} d4 {[%emt 0:00:19]} 33. Nb2 {[%emt 0:00:27]} d3 {[%emt 0:00:19]} 34. Nc4 {[%emt 0:00:21]} Qd7 {[%emt 0:00:23]} 35. Nd2 {[%emt 0:00:25]} Nd5 {[%emt 0:00:32]} 36. Kh2 {[%emt 0:00:40]} Ne3 {[%emt 0:00:14]} 37. Qf2 {[%emt 0:00:49]} Qd4 {[%emt 0:00:15]} 38. Kg1 {[%emt 0:00:14]} Qa1+ {[%emt 0:00:57]} 39. Kh2 {[%emt 0:00:03]} Nf5 {[%emt 0:00:03]} 40. Qc5 {[%emt 0:00:18]} Qe1 {[%emt 0:00:13]} 41. Nf3 {[%emt 0:00:22]} Qg3+ {[%emt 0:00:35]} 42. Kg1 {[%emt 0:00:03]} Qxf4 {[%emt 0:00:04]} 43. Qxa5 {[%emt 0:00:13]} Qc1+ {[%emt 0:00:25]} 44. Kh2 {[%emt 0:00:01]} Qc8 {[%emt 0:00:05]} 45. Qd2 {[%emt 0:00:02]} Qd7 {[%emt 0:00:40]} 46. Qc3 {[%emt 0:00:02]} Ne3 {[%emt 0:00:08]} 47. Qb4 {[%emt 0:00:13]} f6 {[%emt 0:00:16]} 48. exf6 {[%emt 0:00:06]} gxf6 {[%emt 0:00:01]} 49. Qc3 {[%emt 0:00:02]} Kg7 {[%emt 0:00:06]} 50. h4 {[%emt 0:00:02]} e5 {[%emt 0:00:02]} 51. Qd2 {[%emt 0:00:04]} Ng4+ {[%emt 0:00:06]} 52. Kg3 {[%emt 0:00:03]} e4 {[%emt 0:00:03]} 53. Ne1 {[%emt 0:00:04]} f5 {[%emt 0:00:01]} 54. Qc3+ {[%emt 0:00:04]} Kh7 {[%emt 0:00:01]} 55. Kh3 {[%emt 0:00:04]} d2 {[%emt 0:00:04]} 56. h5 {[%emt 0:00:16]} d1=Q {[%emt 0:00:08]} 57. hxg6+ {[%emt 0:00:02]} Kxg6 {[%emt 0:00:02]} 58. Qg3 {[%emt 0:00:04]} Qh7+ {[%emt 0:00:01]} 0-1

[Event "ESP-ch Rapid 2018"]
[Site "Linares"]
[Date "2018.08.19"]
[Round "9"]
[White "Fernandez Diaz, Ignacio"]
[Black "Sanchez Jimenez, Juan Carlos"]
[Result "0-1"]
[ECO "C01"]
[WhiteElo "2071"]
[BlackElo "2228"]
[Annotator "NA"]
[PlyCount "50"]
[EventDate "2018.08.19"]
[EventType "team-tourn"]
[EventCountry "ESP"]
[SourceTitle "playchess.com"]
[Source "ChessBase"]
[SourceQuality "1"]
[TimeControl "900+5"]

1. e4 {[%emt 0:00:00]} e6 {[%emt 0:00:00]} 2. d4 {[%emt 0:00:00]} d5 {[%emt 0:00:00]} 3. exd5 {[%emt 0:00:00]} exd5 {[%emt 0:00:00]} 4. Nf3 {[%emt 0:00:01]} Nc6 {[%emt 0:00:00]} 5. Bb5 {[%emt 0:00:01]} Bd6 {[%emt 0:00:04]} 6. c4 {[%emt 0:00:06]} dxc4 {[%emt 0:00:06]} 7. d5 {[%emt 0:00:01]} a6 {[%emt 0:00:01]} 8. Ba4 {[%emt 0:00:04]} b5 {[%emt 0:00:03]} 9. dxc6 {[%emt 0:00:03]} bxa4 {[%emt 0:00:01]} 10. Nbd2 {[%emt 0:00:21]} Be6 {[%emt 0:03:47]} 11. Qxa4 {[%emt 0:00:28]} Ne7 {[%emt 0:00:01]} 12. Nxc4 {[%emt 0:00:29]} Bd5 {[%emt 0:00:14]} 13. Nd4 {[%emt 0:01:38]} Bc5 {[%emt 0:00:31]} 14. Ne3 {[%emt 0:02:19]} Rb8 {[%emt 0:01:32]} 15. Bd2 {[%emt 0:01:10]} Bxg2 {[%emt 0:00:35]} 16. Rg1 {[%emt 0:00:34]} Qxd4 {[%emt 0:00:52]} 17. Qxd4 {[%emt 0:01:15]} Bxd4 {[%emt 0:00:02]} 18. Rxg2 {[%emt 0:00:10]} Rxb2 {[%emt 0:00:17]} 19. O-O-O {[%emt 0:01:22]} Rxa2 {[%emt 0:00:27]} 20. Nc2 {[%emt 0:00:08]} Bf6 {[%emt 0:00:13]} 21. Bf4 {[%emt 0:00:57]} Nxc6 {[%emt 0:00:21]} 22. Bxc7 {[%emt 0:00:23]} O-O {[%emt 0:00:02]} 23. Rd6 {[%emt 0:00:50]} Be5 {[%emt 0:00:35]} 24. Rxc6 {[%emt 0:00:08]} Rc8 {[%emt 0:00:01]} 25. Rg5 {[%emt 0:01:19]} Bf4+ {[%emt 0:00:05]} 0-1

[Event "ESP-ch Rapid 2018"]
[Site "Linares"]
[Date "2018.08.19"]
[Round "9"]
[White "Lopez Gonzalez, Alfonso"]
[Black "Cuenca Jimenez, Jose Fernando"]
[Result "0-1"]
[ECO "E71"]
[WhiteElo "2063"]
[BlackElo "2506"]
[Annotator "ChessBase"]
[PlyCount "94"]
[EventDate "2018.08.19"]
[EventType "team-tourn"]
[EventCountry "ESP"]
[SourceTitle "playchess.com"]
[Source "ChessBase"]
[SourceQuality "1"]
[TimeControl "900+5"]

1. d4 {[%emt 0:00:00]} Nf6 {[%emt 0:00:00]} 2. c4 {[%emt 0:00:00]} g6 {[%emt 0:00:00]} 3. Nc3 {[%emt 0:00:00]} Bg7 {[%emt 0:00:00]} 4. e4 {[%emt 0:00:00]} d6 {[%emt 0:00:00]} 5. h3 {[%emt 0:00:00]} O-O {[%emt 0:00:06]} 6. Bd3 {[%emt 0:00:02]} Nc6 {[%emt 0:00:27]} 7. Nge2 {[%emt 0:00:08]} Nd7 {[%emt 0:02:05]} 8. Bc2 {[%emt 0:02:52]} Na5 {[%emt 0:00:25]} 9. b3 {[%emt 0:01:32]} c5 {[%emt 0:00:04]} 10. dxc5 {[%emt 0:00:19]} dxc5 {[%emt 0:00:09]} 11. Bb2 {[%emt 0:00:35]} Nc6 {[%emt 0:00:08]} 12. Rb1 {[%emt 0:01:11]} a6 {[%emt 0:00:29]} 13. O-O {[%emt 0:00:25]} Nd4 {[%emt 0:00:47]} 14. Nd5 {[%emt 0:01:20]} Nxe2+ {[%emt 0:01:20]} 15. Qxe2 {[%emt 0:00:05]} Bxb2 {[%emt 0:00:02]} 16. Rxb2 {[%emt 0:00:01]} e6 {[%emt 0:00:10]} 17. Ne3 {[%emt 0:00:26]} e5 {[%emt 0:02:18]} 18. Nd5 {[%emt 0:01:28]} Nf6 {[%emt 0:02:12]} 19. Rbb1 {[%emt 0:00:26]} Be6 {[%emt 0:00:15]} 20. Rbd1 {[%emt 0:00:44]} Bxd5 {[%emt 0:00:06]} 21. exd5 {[%emt 0:00:01]} Qd6 {[%emt 0:00:03]} 22. a3 {[%emt 0:00:23]} a5 {[%emt 0:00:12]} 23. a4 {[%emt 0:00:13]} b6 {[%emt 0:00:08]} 24. f4 {[%emt 0:01:07]} exf4 {[%emt 0:00:14]} 25. Qf3 {[%emt 0:00:06]} Nh5 {[%emt 0:00:41]} 26. Rfe1 {[%emt 0:00:08]} Rae8 {[%emt 0:00:07]} 27. Kf2 {[%emt 0:00:21]} Nf6 {[%emt 0:01:40]} 28. Rxe8 {[%emt 0:01:25]} Rxe8 29. Re1 Rxe1 {[%emt 0:00:04]} 30. Kxe1 {[%emt 0:00:01]} Qe5+ {[%emt 0:00:07]} 31. Qe2 {[%emt 0:00:13]} Nd7 {[%emt 0:00:15]} 32. Qxe5 {[%emt 0:00:52]} Nxe5 {[%emt 0:00:02]} 33. Kf2 {[%emt 0:00:02]} f5 {[%emt 0:00:13]} 34. Bb1 {[%emt 0:00:16]} Kf7 {[%emt 0:00:03]} 35. Bc2 {[%emt 0:00:01]} Kf6 {[%emt 0:00:11]} 36. Bb1 {[%emt 0:00:09]} Nf7 {[%emt 0:00:09]} 37. Bc2 Ke5 {[%emt 0:00:25]} 38. Bb1 {[%emt 0:00:29]} g5 {[%emt 0:00:16]} 39. Bc2 {[%emt 0:00:29]} Nd6 {[%emt 0:00:01]} 40. Bb1 {[%emt 0:00:08]} Kd4 {[%emt 0:00:11]} 41. Bc2 {[%emt 0:00:03]} Kc3 {[%emt 0:00:14]} 42. Bd1 {[%emt 0:00:00]} Kd2 {[%emt 0:00:06]} 43. Bf3 {[%emt 0:00:24]} Kc2 {[%emt 0:00:02]} 44. h4 {[%emt 0:00:08]} h6 {[%emt 0:00:08]} 45. hxg5 {[%emt 0:00:05]} hxg5 {[%emt 0:00:01]} 46. g3 {[%emt 0:00:01]} fxg3+ {[%emt 0:00:06]} 47. Kxg3 {[%emt 0:00:01]} Kxb3 {[%emt 0:00:01]} 0-1